[Event "Open NK Rapid 2025"]
[Site "Helmond, Netherlands"]
[Date "2025.05.03"]
[Round "5.22"]
[White "Nies, Levi"]
[Black "Geboers, Jimmy"]
[Result "1-0"]
[TimeControl "15+5"]
[WhiteFideId "1061275"]
[BlackFideId "262919"]
[WhiteElo "1828"]
[BlackElo "2065"]

1. e4 {[%clk 00:15:07]} {[%emt 00:00:03]} e6 {[%clk 00:15:09]} {[%emt
00:00:02]} 2. e5 {[%clk 00:15:07]} {[%emt 00:00:04]} d5 {[%clk 00:15:12]}
{[%emt 00:00:02]} 3. exd6 {[%clk 00:15:11]} {[%emt 00:00:01]} cxd6 {[%clk
00:15:13]} {[%emt 00:00:04]} 4. d4 {[%clk 00:15:15]} {[%emt 00:00:01]} b6
{[%clk 00:15:12]} {[%emt 00:00:06]} 5. Nf3 {[%clk 00:13:59]} {[%emt 00:01:22]}
Ba6 {[%clk 00:15:10]} {[%emt 00:00:06]} 6. Bxa6 {[%clk 00:13:37]} {[%emt
00:00:27]} Nxa6 {[%clk 00:15:12]} {[%emt 00:00:03]} 7. c3 {[%clk 00:13:39]}
{[%emt 00:00:04]} Qd7 {[%clk 00:15:07]} {[%emt 00:00:09]} 8. O-O {[%clk
00:11:53]} {[%emt 00:01:52]} Nf6 {[%clk 00:15:03]} {[%emt 00:00:08]} 9. Qe2
{[%clk 00:11:00]} {[%emt 00:00:59]} Nc7 {[%emt 00:00:37]} 10. Ng5 {[%clk
00:10:40]} Be7 {[%clk 00:14:19]} {[%emt 00:00:39]} 11. f4 {[%clk 00:10:38]}
{[%emt 00:00:08]} h6 {[%clk 00:13:55]} {[%emt 00:00:29]} 12. Ne4 {[%clk
00:10:10]} {[%emt 00:00:33]} O-O {[%clk 00:12:49]} {[%emt 00:01:11]} 13. Nxf6+
{[%clk 00:10:10]} {[%emt 00:00:05]} Bxf6 {[%clk 00:12:51]} {[%emt 00:00:03]} 14.
Qg4 {[%clk 00:10:13]} {[%emt 00:00:03]} Kh7 {[%clk 00:11:38]} {[%emt 00:01:16]}
15. Nd2 {[%clk 00:08:31]} {[%emt 00:01:48]} g6 {[%clk 00:11:20]} {[%emt
00:00:23]} 16. Ne4 {[%clk 00:08:16]} {[%emt 00:00:21]} Bg7 {[%clk 00:11:20]}
{[%emt 00:00:04]} 17. Qh4 {[%clk 00:07:31]} {[%emt 00:00:50]} f5 {[%clk
00:11:06]} {[%emt 00:00:19]} 18. Ng5+ {[%clk 00:07:31]} {[%emt 00:00:06]} Kg8
{[%clk 00:11:08]} {[%emt 00:00:02]} 19. Nf3 {[%clk 00:07:35]} {[%emt 00:00:02]}
Rae8 {[%clk 00:10:42]} {[%emt 00:00:31]} 20. Qg3 {[%clk 00:07:29]} {[%emt
00:00:10]} Kh7 {[%clk 00:10:36]} {[%emt 00:00:10]} 21. Bd2 {[%clk 00:07:15]}
{[%emt 00:00:20]} Bf6 {[%clk 00:10:26]} {[%emt 00:00:14]} 22. Rae1 {[%clk
00:06:57]} {[%emt 00:00:25]} Re7 {[%clk 00:10:15]} {[%emt 00:00:15]} 23. Re2
{[%clk 00:06:49]} {[%emt 00:00:14]} Rfe8 {[%clk 00:10:17]} {[%emt 00:00:02]} 24.
Qe1 {[%clk 00:06:04]} {[%emt 00:00:50]} Na6 {[%clk 00:09:51]} {[%emt 00:00:30]}
25. Qd1 {[%clk 00:05:46]} {[%emt 00:00:24]} Nb8 {[%clk 00:09:09]} {[%emt
00:00:47]} 26. Rfe1 {[%clk 00:05:34]} {[%emt 00:00:18]} Nc6 {[%clk 00:08:25]}
{[%emt 00:00:48]} 27. Qa4 {[%clk 00:05:29]} {[%emt 00:00:10]} e5 {[%clk
00:07:51]} {[%emt 00:00:39]} 28. d5 {[%clk 00:04:50]} {[%emt 00:00:44]} Nb8
{[%clk 00:07:54]} {[%emt 00:00:02]} 29. Qc4 {[%clk 00:02:51]} {[%emt 00:02:05]}
Qc7 {[%clk 00:06:31]} {[%emt 00:01:28]} 30. Qxc7 {[%clk 00:02:36]} {[%emt
00:00:20]} Rxc7 {[%clk 00:06:33]} {[%emt 00:00:01]} 31. fxe5 {[%clk 00:02:21]}
{[%emt 00:00:22]} dxe5 {[%clk 00:06:36]} 32. Bf4 {[%clk 00:00:51]} {[%emt
00:01:35]} Rce7 {[%clk 00:06:39]} {[%emt 00:00:02]} 33. d6 {[%clk 00:00:55]}
{[%emt 00:00:02]} Re6 {[%clk 00:06:30]} {[%emt 00:00:13]} 34. Nd4 {[%clk
00:00:51]} {[%emt 00:00:09]} Rxd6 {[%clk 00:06:21]} {[%emt 00:00:14]} 35. Bxe5
{[%clk 00:00:55]} {[%emt 00:00:02]} Bxe5 {[%clk 00:06:12]} {[%emt 00:00:14]} 36.
Rxe5 {[%clk 00:00:59]} Rxe5 {[%clk 00:05:57]} {[%emt 00:00:20]} 37. Rxe5 {[%clk
00:01:03]} Rd7 {[%clk 00:05:54]} {[%emt 00:00:08]} 38. Kf2 {[%clk 00:00:50]}
{[%emt 00:00:18]} Na6 {[%clk 00:05:54]} {[%emt 00:00:05]} 39. Ke2 {[%clk
00:00:51]} {[%emt 00:00:05]} Kg7 {[%clk 00:05:50]} {[%emt 00:00:07]} 40. Re8
{[%clk 00:00:34]} {[%emt 00:00:23]} Nc7 {[%clk 00:05:37]} {[%emt 00:00:17]} 41.
Rc8 {[%clk 00:00:28]} {[%emt 00:00:12]} Nd5 {[%clk 00:05:31]} {[%emt 00:00:11]}
42. Ra8 {[%clk 00:00:28]} {[%emt 00:00:06]} Nf4+ {[%clk 00:04:39]} {[%emt
00:00:56]} 43. Kf3 {[%clk 00:00:30]} {[%emt 00:00:03]} Nd3 {[%clk 00:04:41]}
{[%emt 00:00:03]} 44. b4 {[%clk 00:00:20]} {[%emt 00:00:16]} Nc1 {[%clk
00:04:35]} {[%emt 00:00:10]} 45. a3 {[%clk 00:00:21]} {[%emt 00:00:05]} Na2
{[%clk 00:04:38]} {[%emt 00:00:02]} 46. Nb5 {[%emt 00:01:45]} a5 {[%clk
00:03:01]} 47. bxa5 {[%clk 00:00:20]} {[%emt 00:00:07]} bxa5 {[%clk 00:02:44]}
{[%emt 00:00:22]} 48. Rxa5 {[%clk 00:00:18]} {[%emt 00:00:07]} Nxc3 {[%clk
00:02:43]} {[%emt 00:00:06]} 49. Ra7 {[%clk 00:00:08]} {[%emt 00:00:15]} Rxa7
{[%clk 00:02:36]} {[%emt 00:00:12]} 50. Nxa7 {[%clk 00:00:13]} Kf6 {[%clk
00:02:38]} {[%emt 00:00:03]} 51. Nc6 {[%clk 00:00:14]} {[%emt 00:00:05]} Ke6
{[%clk 00:02:38]} {[%emt 00:00:04]} 52. Ke3 {[%clk 00:00:15]} {[%emt 00:00:04]}
Kd6 {[%clk 00:02:38]} {[%emt 00:00:04]} 53. Nd8 {[%clk 00:00:13]} {[%emt
00:00:08]} Ke5 {[%clk 00:01:53]} {[%emt 00:00:48]} 54. Nf7+ {[%clk 00:00:17]}
{[%emt 00:00:03]} Kf6 {[%clk 00:01:57]} {[%emt 00:00:01]} 55. Nd8 {[%emt
00:00:15]} g5 {[%clk 00:01:55]} {[%emt 00:00:06]} 56. Kd3 {[%clk 00:00:12]} Nd5
{[%clk 00:01:43]} {[%emt 00:00:16]} 57. g3 {[%clk 00:00:16]} {[%emt 00:00:02]}
f4 {[%clk 00:01:39]} {[%emt 00:00:09]} 58. gxf4 {[%clk 00:00:14]} {[%emt
00:00:07]} Nxf4+ {[%clk 00:01:41]} {[%emt 00:00:03]} 59. Ke4 {[%clk 00:00:17]}
{[%emt 00:00:02]} Ne6 {[%clk 00:01:39]} {[%emt 00:00:06]} 60. Nxe6 {[%clk
00:00:17]} {[%emt 00:00:06]} Kxe6 {[%clk 00:01:42]} {[%emt 00:00:01]} 61. a4
{[%clk 00:00:18]} {[%emt 00:00:04]} h5 {[%clk 00:01:45]} {[%emt 00:00:02]} 62.
a5 {[%clk 00:00:23]} {[%emt 00:00:01]} Kd6 {[%clk 00:01:00]} {[%emt 00:00:50]}
63. Kf5 {[%clk 00:00:27]} g4 {[%clk 00:00:57]} {[%emt 00:00:07]} 64. Kg5 {[%clk
00:00:31]} {[%emt 00:00:01]} 1-0

[Event "Open NK Rapid 2025"]
[Site "Helmond, Netherlands"]
[Date "2025.05.03"]
[Round "5.23"]
[White "Bekkink, Sereyo"]
[Black "De Jong, Lode"]
[Result "1-0"]
[TimeControl "15+5"]
[WhiteFideId "1037161"]
[BlackFideId "40101860"]
[WhiteElo "2064"]
[BlackElo "1848"]

1. e4 {[%clk 00:15:09]} c5 {[%clk 00:15:09]} {[%emt 00:00:02]} 2. c3 {[%clk
00:15:13]} {[%emt 00:00:01]} Nf6 {[%clk 00:15:11]} {[%emt 00:00:02]} 3. e5
{[%clk 00:15:18]} {[%emt 00:00:01]} Nd5 {[%clk 00:15:15]} {[%emt 00:00:01]} 4.
Nf3 {[%clk 00:15:22]} {[%emt 00:00:01]} d6 {[%clk 00:14:58]} {[%emt 00:00:22]}
5. exd6 {[%clk 00:15:17]} {[%emt 00:00:10]} Qxd6 {[%clk 00:15:00]} {[%emt
00:00:03]} 6. d4 {[%clk 00:15:01]} {[%emt 00:00:21]} cxd4 {[%clk 00:14:56]}
{[%emt 00:00:08]} 7. Nxd4 {[%clk 00:15:01]} {[%emt 00:00:06]} Nc6 {[%clk
00:12:20]} {[%emt 00:02:41]} 8. Be2 {[%clk 00:13:27]} {[%emt 00:01:38]} a6
{[%clk 00:11:54]} {[%emt 00:00:31]} 9. Nxc6 {[%clk 00:12:57]} {[%emt 00:00:35]}
Qxc6 {[%clk 00:11:45]} {[%emt 00:00:13]} 10. O-O {[%clk 00:12:58]} {[%emt
00:00:05]} Be6 {[%clk 00:11:05]} {[%emt 00:00:45]} 11. c4 {[%clk 00:12:50]}
{[%emt 00:00:14]} Nf6 {[%clk 00:11:03]} {[%emt 00:00:06]} 12. Bf3 {[%clk
00:12:08]} {[%emt 00:00:47]} Qxc4 {[%clk 00:10:14]} {[%emt 00:00:53]} 13. Bxb7
{[%clk 00:11:48]} {[%emt 00:00:26]} Rd8 {[%clk 00:10:18]} 14. Nd2 {[%clk
00:11:17]} {[%emt 00:00:36]} Qb5 {[%clk 00:09:52]} {[%emt 00:00:30]} 15. Bf3
{[%clk 00:10:56]} {[%emt 00:00:28]} g6 {[%clk 00:09:47]} {[%emt 00:00:09]} 16.
a4 {[%clk 00:10:52]} {[%emt 00:00:09]} Qc5 {[%clk 00:08:56]} {[%emt 00:00:56]}
17. Qe2 {[%clk 00:10:45]} {[%emt 00:00:13]} a5 {[%clk 00:08:20]} {[%emt
00:00:41]} 18. b3 {[%clk 00:09:52]} {[%emt 00:00:58]} Bg7 {[%clk 00:07:45]}
{[%emt 00:00:39]} 19. Ba3 {[%clk 00:09:56]} {[%emt 00:00:02]} Qc2 {[%clk
00:06:01]} {[%emt 00:01:48]} 20. Rac1 {[%clk 00:07:18]} {[%emt 00:02:44]} Qa2
{[%clk 00:05:39]} {[%emt 00:00:26]} 21. Qb5+ {[%clk 00:06:06]} {[%emt
00:01:18]} Bd7 {[%clk 00:05:22]} {[%emt 00:00:22]} 22. Qc5 {[%clk 00:05:39]}
{[%emt 00:00:32]} O-O {[%clk 00:04:53]} {[%emt 00:00:33]} 23. Rc2 {[%clk
00:05:36]} {[%emt 00:00:09]} Rc8 {[%clk 00:04:43]} {[%emt 00:00:15]} 24. Rxa2
{[%clk 00:05:34]} {[%emt 00:00:08]} Rxc5 {[%clk 00:04:46]} 25. Bxc5 {[%clk
00:05:38]} {[%emt 00:00:01]} 1-0

[Event "Open NK Rapid 2025"]
[Site "Helmond, Netherlands"]
[Date "2025.05.03"]
[Round "5.24"]
[White "Margaryan, Aren"]
[Black "Elferink, Leon"]
[Result "1-0"]
[TimeControl "15+5"]
[WhiteFideId "40105075"]
[BlackFideId "1086545"]
[WhiteElo "2054"]
[BlackElo "1822"]

1. e4 {[%clk 00:15:07]} {[%emt 00:00:03]} e5 {[%clk 00:15:09]} 2. Nf3 {[%clk
00:15:11]} {[%emt 00:00:01]} Nc6 {[%clk 00:15:13]} 3. Nc3 {[%clk 00:15:16]}
{[%emt 00:00:01]} Nf6 {[%clk 00:15:17]} {[%emt 00:00:01]} 4. d4 {[%clk
00:15:20]} {[%emt 00:00:01]} exd4 {[%clk 00:15:12]} {[%emt 00:00:10]} 5. Nxd4
{[%clk 00:15:23]} {[%emt 00:00:02]} Bb4 {[%clk 00:14:48]} {[%emt 00:00:29]} 6.
Nxc6 {[%clk 00:15:25]} {[%emt 00:00:02]} Bxc3+ {[%clk 00:14:50]} {[%emt
00:00:03]} 7. bxc3 {[%clk 00:15:29]} {[%emt 00:00:02]} bxc6 {[%clk 00:14:53]}
{[%emt 00:00:02]} 8. Bd3 {[%clk 00:15:31]} {[%emt 00:00:02]} d5 {[%clk
00:13:45]} {[%emt 00:01:13]} 9. exd5 {[%clk 00:15:33]} {[%emt 00:00:03]} Qe7+
{[%clk 00:13:33]} {[%emt 00:00:18]} 10. Be3 {[%clk 00:15:06]} {[%emt 00:00:31]}
Nxd5 {[%clk 00:13:05]} {[%emt 00:00:34]} 11. Qf3 {[%clk 00:14:44]} {[%emt
00:00:26]} O-O {[%clk 00:12:48]} {[%emt 00:00:23]} 12. O-O {[%clk 00:14:44]}
{[%emt 00:00:04]} Qf6 {[%clk 00:11:12]} {[%emt 00:01:42]} 13. Qe4 {[%clk
00:14:24]} {[%emt 00:00:24]} Qg6 {[%clk 00:10:29]} {[%emt 00:00:48]} 14. Qc4
{[%clk 00:13:46]} {[%emt 00:00:42]} Nxe3 {[%clk 00:09:54]} {[%emt 00:00:41]} 15.
fxe3 {[%clk 00:13:39]} {[%emt 00:00:11]} Qe6 {[%clk 00:09:21]} {[%emt
00:00:38]} 16. Qf4 {[%clk 00:13:13]} {[%emt 00:00:28]} g6 {[%clk 00:08:00]}
{[%emt 00:01:30]} 17. Bc4 {[%clk 00:12:43]} {[%emt 00:00:35]} Qe7 {[%clk
00:08:01]} {[%emt 00:00:03]} 18. Rad1 {[%clk 00:12:22]} {[%emt 00:00:27]} Be6
{[%clk 00:08:03]} {[%emt 00:00:04]} 19. Qe5 {[%clk 00:12:18]} {[%emt 00:00:08]}
Rae8 {[%clk 00:07:46]} {[%emt 00:00:22]} 20. Bxe6 {[%clk 00:12:12]} {[%emt
00:00:12]} Qxe6 {[%clk 00:07:46]} {[%emt 00:00:05]} 21. Qxe6 {[%clk 00:11:37]}
{[%emt 00:00:39]} Rxe6 {[%clk 00:07:45]} {[%emt 00:00:07]} 22. Rd3 {[%clk
00:11:40]} {[%emt 00:00:02]} Rfe8 {[%clk 00:07:35]} {[%emt 00:00:15]} 23. Kf2
{[%clk 00:11:35]} {[%emt 00:00:10]} f5 {[%clk 00:07:19]} {[%emt 00:00:21]} 24.
g3 {[%clk 00:11:35]} {[%emt 00:00:04]} Re4 {[%clk 00:07:08]} {[%emt 00:00:15]}
25. Re1 {[%clk 00:11:09]} {[%emt 00:00:32]} R8e7 {[%clk 00:07:10]} {[%emt
00:00:04]} 26. Rd4 {[%clk 00:11:07]} {[%emt 00:00:06]} Kf7 {[%emt 00:00:10]} 27.
h3 {[%clk 00:10:57]} {[%emt 00:00:14]} c5 {[%clk 00:07:05]} {[%emt 00:00:06]}
28. Rd5 {[%clk 00:10:54]} {[%emt 00:00:08]} Rc4 {[%clk 00:06:36]} {[%emt
00:00:35]} 29. Rd3 {[%clk 00:10:35]} {[%emt 00:00:24]} Ra4 {[%clk 00:06:38]}
{[%emt 00:00:02]} 30. Ra1 {[%clk 00:10:28]} {[%emt 00:00:12]} Ra3 {[%clk
00:06:37]} {[%emt 00:00:07]} 31. c4 {[%clk 00:10:29]} {[%emt 00:00:04]} Ra4
{[%clk 00:06:34]} {[%emt 00:00:07]} 32. Rad1 {[%clk 00:09:47]} {[%emt
00:00:47]} Rxa2 {[%clk 00:06:25]} {[%emt 00:00:14]} 33. R1d2 {[%clk 00:09:44]}
{[%emt 00:00:08]} a5 {[%clk 00:06:13]} {[%emt 00:00:17]} 34. Rd5 {[%clk
00:09:39]} {[%emt 00:00:11]} a4 {[%clk 00:05:53]} {[%emt 00:00:25]} 35. Rxc5
{[%clk 00:09:37]} {[%emt 00:00:07]} a3 {[%clk 00:05:25]} {[%emt 00:00:33]} 36.
Ra5 {[%clk 00:09:38]} {[%emt 00:00:03]} Re4 {[%clk 00:04:08]} {[%emt 00:01:22]}
37. Rd7+ {[%clk 00:09:34]} {[%emt 00:00:08]} Ke6 {[%clk 00:04:07]} {[%emt
00:00:07]} 38. Rxc7 {[%clk 00:09:35]} {[%emt 00:00:04]} Rxc2+ {[%clk 00:04:06]}
{[%emt 00:00:06]} 39. Kf3 {[%clk 00:09:35]} {[%emt 00:00:06]} Rcxc4 {[%clk
00:03:21]} {[%emt 00:00:50]} 40. Ra6+ {[%clk 00:09:14]} {[%emt 00:00:26]} Kd5
{[%clk 00:03:23]} {[%emt 00:00:03]} 41. Rd7+ {[%clk 00:09:10]} {[%emt
00:00:07]} Kc5 42. Rxa3 {[%clk 00:09:14]} Kb4 {[%clk 00:03:14]} {[%emt
00:00:07]} 43. Rad3 {[%clk 00:09:07]} {[%emt 00:00:12]} g5 {[%clk 00:02:58]}
{[%emt 00:00:22]} 44. Rxh7 {[%clk 00:08:03]} {[%emt 00:01:08]} g4+ {[%clk
00:03:02]} {[%emt 00:00:01]} 45. hxg4 {[%clk 00:08:07]} {[%emt 00:00:02]} fxg4+
{[%clk 00:03:05]} {[%emt 00:00:02]} 46. Ke2 {[%clk 00:08:09]} {[%emt 00:00:01]}
Rc2+ {[%clk 00:03:05]} {[%emt 00:00:06]} 47. Rd2 {[%clk 00:08:13]} {[%emt
00:00:02]} Rcc4 {[%clk 00:02:27]} {[%emt 00:00:43]} 48. Rhd7 {[%clk 00:08:06]}
{[%emt 00:00:12]} Kb5 {[%clk 00:02:25]} {[%emt 00:00:07]} 49. R7d4 {[%clk
00:08:03]} {[%emt 00:00:07]} Kc6 {[%clk 00:02:18]} {[%emt 00:00:13]} 50. Rxc4+
{[%clk 00:07:59]} {[%emt 00:00:09]} Rxc4 {[%clk 00:02:22]} {[%emt 00:00:01]} 51.
Rd4 {[%clk 00:08:01]} {[%emt 00:00:03]} Rc2+ {[%clk 00:02:26]} 52. Kd3 {[%clk
00:08:05]} {[%emt 00:00:01]} Rg2 {[%clk 00:02:19]} {[%emt 00:00:11]} 53. Rxg4
{[%clk 00:08:08]} {[%emt 00:00:02]} 1-0

[Event "Open NK Rapid 2025"]
[Site "Helmond, Netherlands"]
[Date "2025.05.03"]
[Round "5.25"]
[White "Khatniuk, Anastasiia"]
[Black "Ritzerveld, Noah"]
[Result "0-1"]
[TimeControl "15+5"]
[WhiteFideId "14179105"]
[BlackFideId "1085760"]
[WhiteElo "1822"]
[BlackElo "2053"]

1. e4 {[%clk 00:15:08]} {[%emt 00:00:01]} e5 {[%clk 00:15:10]} {[%emt
00:00:01]} 2. Nf3 {[%clk 00:15:11]} {[%emt 00:00:02]} Nc6 {[%clk 00:15:14]} 3.
Bb5 {[%clk 00:15:15]} {[%emt 00:00:01]} a6 {[%clk 00:15:19]} 4. Ba4 {[%clk
00:15:19]} Nf6 {[%clk 00:15:22]} {[%emt 00:00:02]} 5. O-O {[%clk 00:15:22]}
{[%emt 00:00:02]} Be7 {[%clk 00:15:25]} {[%emt 00:00:01]} 6. Re1 {[%clk
00:15:25]} {[%emt 00:00:03]} b5 {[%clk 00:15:27]} {[%emt 00:00:03]} 7. Bb3
{[%clk 00:15:29]} {[%emt 00:00:01]} d6 {[%clk 00:15:15]} {[%emt 00:00:17]} 8.
a4 {[%clk 00:15:24]} {[%emt 00:00:09]} Bd7 {[%clk 00:14:33]} {[%emt 00:00:47]}
9. c3 {[%clk 00:15:18]} {[%emt 00:00:12]} O-O {[%clk 00:13:58]} {[%emt
00:00:39]} 10. d3 {[%clk 00:15:17]} {[%emt 00:00:07]} Na5 {[%clk 00:13:43]}
{[%emt 00:00:20]} 11. Bc2 {[%clk 00:15:16]} {[%emt 00:00:06]} c5 {[%clk
00:13:41]} {[%emt 00:00:07]} 12. Bd2 {[%clk 00:14:44]} {[%emt 00:00:36]} Qc7
{[%clk 00:13:14]} {[%emt 00:00:32]} 13. h3 {[%clk 00:13:03]} {[%emt 00:01:47]}
Nc6 {[%clk 00:13:05]} {[%emt 00:00:14]} 14. Na3 {[%clk 00:12:50]} {[%emt
00:00:17]} Rab8 {[%clk 00:12:04]} {[%emt 00:01:07]} 15. Qc1 {[%clk 00:11:52]}
{[%emt 00:01:02]} b4 {[%clk 00:11:26]} {[%emt 00:00:43]} 16. Nc4 {[%clk
00:11:53]} {[%emt 00:00:04]} bxc3 {[%clk 00:10:52]} {[%emt 00:00:40]} 17. bxc3
{[%clk 00:11:47]} {[%emt 00:00:11]} Be6 {[%clk 00:10:33]} {[%emt 00:00:23]} 18.
Ne3 {[%clk 00:11:47]} {[%emt 00:00:05]} Na5 {[%clk 00:10:21]} {[%emt 00:00:18]}
19. Bd1 {[%clk 00:10:09]} {[%emt 00:01:41]} Nb3 {[%clk 00:10:01]} {[%emt
00:00:26]} 20. Bxb3 {[%clk 00:10:08]} {[%emt 00:00:06]} Rxb3 {[%clk 00:10:03]}
{[%emt 00:00:04]} 21. Ng5 {[%clk 00:09:34]} {[%emt 00:00:38]} Bd7 {[%clk
00:09:36]} {[%emt 00:00:31]} 22. Nd5 {[%clk 00:08:57]} {[%emt 00:00:43]} Nxd5
{[%clk 00:09:37]} {[%emt 00:00:04]} 23. exd5 {[%clk 00:09:01]} {[%emt
00:00:01]} h6 {[%clk 00:09:10]} {[%emt 00:00:33]} 24. Nf3 {[%clk 00:08:47]}
{[%emt 00:00:19]} Bf5 {[%clk 00:07:48]} {[%emt 00:01:27]} 25. Re3 {[%clk
00:07:59]} {[%emt 00:00:53]} Rfb8 {[%clk 00:07:37]} {[%emt 00:00:15]} 26. g4
{[%clk 00:07:27]} {[%emt 00:00:38]} Bh7 {[%clk 00:07:26]} {[%emt 00:00:15]} 27.
Kg2 {[%clk 00:07:29]} {[%emt 00:00:02]} c4 {[%clk 00:07:24]} {[%emt 00:00:08]}
28. dxc4 {[%clk 00:06:08]} {[%emt 00:01:27]} Rb1 {[%clk 00:06:35]} {[%emt
00:00:53]} 29. Qa3 {[%clk 00:06:08]} {[%emt 00:00:05]} Qxc4 {[%clk 00:06:33]}
{[%emt 00:00:06]} 30. Qa2 {[%clk 00:05:28]} {[%emt 00:00:44]} Qf1+ {[%clk
00:06:29]} {[%emt 00:00:11]} 0-1

[Event "Open NK Rapid 2025"]
[Site "Helmond, Netherlands"]
[Date "2025.05.03"]
[Round "6.1"]
[White "Schneider, Ilja"]
[Black "Warmerdam, Max"]
[Result "0-1"]
[TimeControl "15+5"]
[WhiteFideId "4663306"]
[BlackFideId "1048104"]
[WhiteElo "2438"]
[BlackElo "2517"]

1. d4 {[%clk 00:15:08]} {[%emt 00:00:02]} d5 {[%clk 00:15:09]} {[%emt
00:00:02]} 2. c4 {[%clk 00:15:12]} {[%emt 00:00:01]} e6 {[%clk 00:15:13]}
{[%emt 00:00:01]} 3. Nf3 {[%clk 00:15:15]} {[%emt 00:00:01]} Nf6 {[%clk
00:15:16]} {[%emt 00:00:02]} 4. g3 {[%clk 00:15:19]} {[%emt 00:00:01]} Bb4+
{[%clk 00:15:17]} {[%emt 00:00:04]} 5. Bd2 {[%clk 00:15:23]} {[%emt 00:00:01]}
Be7 {[%clk 00:15:21]} {[%emt 00:00:01]} 6. Bg2 {[%clk 00:15:27]} {[%emt
00:00:01]} O-O {[%clk 00:15:24]} {[%emt 00:00:02]} 7. O-O {[%clk 00:15:29]}
{[%emt 00:00:02]} Nbd7 {[%clk 00:15:24]} {[%emt 00:00:06]} 8. Qc2 {[%clk
00:15:29]} {[%emt 00:00:05]} c6 {[%clk 00:15:27]} {[%emt 00:00:02]} 9. Bf4
{[%clk 00:15:19]} {[%emt 00:00:15]} a5 {[%clk 00:15:13]} {[%emt 00:00:19]} 10.
Nc3 {[%clk 00:15:19]} {[%emt 00:00:05]} dxc4 {[%clk 00:14:53]} {[%emt
00:00:25]} 11. Rfd1 {[%clk 00:12:21]} {[%emt 00:03:02]} Nd5 {[%clk 00:14:25]}
{[%emt 00:00:33]} 12. Nd2 {[%clk 00:11:49]} {[%emt 00:00:39]} b5 {[%clk
00:13:42]} {[%emt 00:00:48]} 13. a4 {[%clk 00:11:37]} {[%emt 00:00:17]} b4
{[%clk 00:10:55]} {[%emt 00:02:51]} 14. Nce4 {[%clk 00:10:35]} {[%emt
00:01:06]} N7b6 {[%clk 00:10:06]} {[%emt 00:00:55]} 15. Nxc4 {[%clk 00:10:17]}
{[%emt 00:00:23]} Nxc4 {[%clk 00:09:23]} {[%emt 00:00:48]} 16. Qxc4 {[%clk
00:10:21]} Ba6 {[%clk 00:09:24]} {[%emt 00:00:04]} 17. Qc2 {[%clk 00:10:09]}
{[%emt 00:00:17]} b3 {[%clk 00:09:01]} {[%emt 00:00:28]} 18. Qd2 {[%clk
00:08:48]} {[%emt 00:01:25]} Bb4 {[%clk 00:09:03]} {[%emt 00:00:04]} 19. Nc3
{[%clk 00:08:52]} {[%emt 00:00:01]} Bxc3 {[%clk 00:08:40]} {[%emt 00:00:27]} 20.
bxc3 {[%clk 00:08:57]} Nxf4 {[%clk 00:08:42]} {[%emt 00:00:03]} 21. gxf4 {[%clk
00:08:47]} {[%emt 00:00:15]} Qd7 {[%clk 00:07:52]} {[%emt 00:00:56]} 22. c4
{[%clk 00:07:50]} {[%emt 00:01:01]} Rfb8 {[%clk 00:07:35]} {[%emt 00:00:21]} 23.
Qxa5 {[%clk 00:06:25]} {[%emt 00:01:31]} Bxc4 {[%clk 00:06:56]} {[%emt
00:00:44]} 24. Qc5 {[%clk 00:05:47]} {[%emt 00:00:43]} Bxe2 {[%clk 00:06:19]}
{[%emt 00:00:41]} 25. Rd2 {[%clk 00:05:51]} {[%emt 00:00:01]} Bb5 {[%clk
00:06:07]} {[%emt 00:00:17]} 26. Qb4 {[%clk 00:02:11]} {[%emt 00:03:46]} Bf1
{[%clk 00:04:24]} {[%emt 00:01:48]} 27. Qc3 {[%clk 00:02:15]} {[%emt 00:00:01]}
Bxg2 {[%clk 00:04:25]} {[%emt 00:00:04]} 28. Kxg2 {[%clk 00:02:18]} Qd5+ {[%clk
00:03:46]} {[%emt 00:00:45]} 29. Kg3 {[%clk 00:02:22]} h5 {[%clk 00:02:40]}
{[%emt 00:01:11]} 30. a5 {[%clk 00:01:18]} {[%emt 00:01:10]} Qf5 {[%clk
00:01:53]} {[%emt 00:00:52]} 31. h3 {[%clk 00:01:09]} {[%emt 00:00:14]} h4+
{[%clk 00:01:55]} {[%emt 00:00:03]} 32. Kg2 {[%clk 00:01:13]} Qxf4 {[%clk
00:01:58]} {[%emt 00:00:02]} 33. Rb2 {[%clk 00:01:05]} {[%emt 00:00:14]} Qe4+
{[%clk 00:01:18]} {[%emt 00:00:44]} 34. Kh2 {[%clk 00:00:55]} {[%emt 00:00:15]}
Qd5 {[%clk 00:00:59]} {[%emt 00:00:24]} 35. a6 {[%clk 00:00:51]} {[%emt
00:00:10]} Ra7 {[%clk 00:01:00]} {[%emt 00:00:04]} 36. Ra5 {[%clk 00:00:49]}
{[%emt 00:00:07]} Qd6+ {[%clk 00:00:40]} {[%emt 00:00:24]} 37. Kg2 {[%clk
00:00:50]} {[%emt 00:00:04]} Qb4 {[%clk 00:00:37]} {[%emt 00:00:08]} 38. Qxb4
{[%clk 00:00:08]} {[%emt 00:00:47]} Rxb4 {[%clk 00:00:41]} 39. Ra3 {[%clk
00:00:13]} {[%emt 00:00:01]} g5 {[%clk 00:00:39]} {[%emt 00:00:06]} 40. Ra5
{[%clk 00:00:08]} {[%emt 00:00:10]} f6 {[%clk 00:00:42]} {[%emt 00:00:03]} 41.
Ra3 {[%clk 00:00:09]} {[%emt 00:00:03]} Kf7 {[%clk 00:00:44]} {[%emt 00:00:03]}
42. Kf3 {[%clk 00:00:14]} Rb6 {[%clk 00:00:45]} {[%emt 00:00:04]} 43. Raxb3
{[%clk 00:00:16]} {[%emt 00:00:03]} Rxb3+ {[%clk 00:00:49]} 44. Rxb3 {[%clk
00:00:21]} Rxa6 {[%clk 00:00:53]} {[%emt 00:00:01]} 45. Kg4 {[%clk 00:00:24]}
Ra4 {[%clk 00:00:57]} {[%emt 00:00:02]} 46. Kh5 {[%clk 00:00:29]} {[%emt
00:00:01]} Rxd4 {[%clk 00:01:00]} {[%emt 00:00:02]} 47. Rb7+ {[%clk 00:00:33]}
Ke8 {[%emt 00:00:01]} 48. Kg6 {[%clk 00:00:37]} Rf4 {[%clk 00:01:08]} 49. Rc7
{[%clk 00:00:34]} {[%emt 00:00:09]} e5 {[%clk 00:00:56]} {[%emt 00:00:15]} 50.
Rxc6 {[%clk 00:00:39]} {[%emt 00:00:01]} Rxf2 {[%clk 00:00:53]} {[%emt
00:00:08]} 51. Rc7 {[%clk 00:00:43]} {[%emt 00:00:02]} Rf4 {[%clk 00:00:51]}
{[%emt 00:00:06]} 52. Ra7 {[%clk 00:00:44]} {[%emt 00:00:04]} e4 {[%clk
00:00:53]} {[%emt 00:00:03]} 0-1